[Event "Austria Championship Blitz 2024"]
[Site "Innsbruck"]
[Date "2024.06.01"]
[Round "3.23"]
[White "Babinetz, Rainer"]
[Black "Cafasso, Elia"]
[Result "0-1"]
[ECO "C54"]
[WhiteElo "1967"]
[BlackElo "2178"]
[Annotator "RC"]
[PlyCount "103"]
[EventDate "2024.06.01"]
[EventType "swiss"]
[EventCountry "AUT"]
[SourceTitle "playchess.com"]
[Source "ChessBase"]
[SourceQuality "1"]
[TimeControl "180+2"]

1. e4 {[%emt 0:00:02]} e5 {[%emt 0:00:01]} 2. Nf3 {[%emt 0:00:03]} Nc6 {[%emt 0:00:01]} 3. Bc4 {[%emt 0:00:01]} Nf6 {[%emt 0:00:01]} 4. d3 {[%emt 0:00:01]} Bc5 {[%emt 0:00:02]} 5. h3 {[%emt 0:00:05]} Bb6 {[%emt 0:00:04]} 6. c3 {[%emt 0:00:04]} d6 {[%emt 0:00:01]} 7. Qe2 {[%emt 0:00:01]} h6 {[%emt 0:00:03]} 8. Be3 {[%emt 0:00:05]} Bd7 {[%emt 0:00:18]} 9. Nbd2 {[%emt 0:00:02]} Na5 {[%emt 0:00:02]} 10. d4 {[%emt 0:00:14]} Nxc4 {[%emt 0:00:03]} 11. Qxc4 {[%emt 0:00:03]} Qe7 {[%emt 0:00:17]} 12. dxe5 {[%emt 0:00:14]} dxe5 {[%emt 0:00:05]} 13. Bxb6 {[%emt 0:00:02]} cxb6 {[%emt 0:00:05]} 14. O-O {[%emt 0:00:11]} Rc8 {[%emt 0:00:06]} 15. Qb3 {[%emt 0:00:03]} O-O {[%emt 0:00:03]} 16. Rad1 {[%emt 0:00:03]} Bc6 {[%emt 0:00:05]} 17. Rfe1 {[%emt 0:00:01]} Rfd8 {[%emt 0:00:06]} 18. Qc2 {[%emt 0:00:16]} Qc5 {[%emt 0:00:19]} 19. Nb3 {[%emt 0:00:07]} Qe7 {[%emt 0:00:05]} 20. Nfd2 {[%emt 0:00:07]} Rd7 {[%emt 0:00:08]} 21. f3 {[%emt 0:00:03]} Rcd8 {[%emt 0:00:06]} 22. Nf1 {[%emt 0:00:01]} a5 {[%emt 0:00:01]} 23. Ne3 {[%emt 0:00:05]} Nh5 {[%emt 0:00:12]} 24. Nf5 {[%emt 0:00:05]} Qf6 {[%emt 0:00:02]} 25. g3 {[%emt 0:00:13]} Kh7 {[%emt 0:00:15]} 26. Kg2 {[%emt 0:00:02]} Qg6 {[%emt 0:00:08]} 27. Rxd7 {[%emt 0:00:08]} Rxd7 {[%emt 0:00:02]} 28. Rd1 {[%emt 0:00:12]} Nf4+ {[%emt 0:00:07]} 29. Kh2 {[%emt 0:00:06]} Ne6 {[%emt 0:00:06]} 30. Rxd7 {[%emt 0:00:01]} Bxd7 {[%emt 0:00:02]} 31. Qd2 {[%emt 0:00:01]} Bc6 {[%emt 0:00:05]} 32. Qd6 {[%emt 0:00:02]} Ng5 {[%emt 0:00:05]} 33. Kg2 {[%emt 0:00:04]} Nxe4 {[%emt 0:00:06]} 34. Qxg6+ {[%emt 0:00:05]} fxg6 {[%emt 0:00:02]} 35. Ne7 {[%emt 0:00:06]} Nc5 {[%emt 0:00:02]} 36. Nd2 {[%emt 0:00:06]} g5 {[%emt 0:00:07]} 37. Nc8 {[%emt 0:00:02]} Nd7 {[%emt 0:00:02]} 38. Nc4 {[%emt 0:00:04]} e4 {[%emt 0:00:03]} 39. N4d6 {[%emt 0:00:09]} exf3+ {[%emt 0:00:52]} 40. Kf2 Kg6 {[%emt 0:00:00]} 41. b4 {[%emt 0:00:03]} axb4 {[%emt 0:00:00]} 42. cxb4 {[%emt 0:00:01]} Kf6 {[%emt 0:00:00]} 43. b5 {[%emt 0:00:03]} Bd5 {[%emt 0:00:00]} 44. Ne8+ {[%emt 0:00:03]} Kf7 {[%emt 0:00:00]} 45. Ned6+ {[%emt 0:00:02]} Ke6 {[%emt 0:00:00]} 46. a3 {[%emt 0:00:01]} g6 {[%emt 0:00:00]} 47. Ne8 {[%emt 0:00:01]} h5 {[%emt 0:00:00]} 48. Ng7+ {[%emt 0:00:02]} Kf7 {[%emt 0:00:00]} 49. Nd6+ {[%emt 0:00:03]} Kxg7 {[%emt 0:00:00]} 50. Ke3 {[%emt 0:00:09]} g4 {[%emt 0:00:00]} 51. hxg4 hxg4 {[%emt 0:00:00]} 52. Kd4 {[%emt 0:00:58]} 0-1

[Event "Austria Championship Blitz 2024"]
[Site "Innsbruck"]
[Date "2024.06.01"]
[Round "3.24"]
[White "Muehlbacher, Bernhard"]
[Black "Schranzhofer, Marco"]
[Result "0-1"]
[ECO "E06"]
[WhiteElo "1960"]
[BlackElo "1908"]
[Annotator "RC"]
[PlyCount "67"]
[EventDate "2024.06.01"]
[EventType "swiss"]
[EventCountry "AUT"]
[SourceTitle "playchess.com"]
[Source "ChessBase"]
[SourceQuality "1"]
[TimeControl "180+2"]

1. c4 {[%emt 0:00:01]} Nf6 {[%emt 0:00:01]} 2. g3 {[%emt 0:00:00]} e6 {[%emt 0:00:00]} 3. Bg2 {[%emt 0:00:01]} d5 {[%emt 0:00:01]} 4. Nf3 {[%emt 0:00:01]} dxc4 {[%emt 0:00:02]} 5. Qc2 {[%emt 0:00:01]} Be7 {[%emt 0:00:15]} 6. O-O {[%emt 0:00:06]} O-O {[%emt 0:00:02]} 7. Qxc4 {[%emt 0:00:08]} c6 {[%emt 0:00:04]} 8. d4 {[%emt 0:00:03]} Qd5 {[%emt 0:00:01]} 9. Qc2 {[%emt 0:00:08]} Qe4 {[%emt 0:00:01]} 10. Qd1 {[%emt 0:00:13]} Nbd7 {[%emt 0:00:09]} 11. Nc3 {[%emt 0:00:01]} Qg6 {[%emt 0:00:02]} 12. e4 {[%emt 0:00:08]} Nxe4 {[%emt 0:00:10]} 13. Nh4 {[%emt 0:00:13]} Bxh4 {[%emt 0:00:52]} 14. Nxe4 {[%emt 0:00:21]} Be7 {[%emt 0:00:05]} 15. Be3 {[%emt 0:00:11]} Nf6 {[%emt 0:00:02]} 16. Nxf6+ {[%emt 0:00:19]} Bxf6 {[%emt 0:00:06]} 17. Qb3 {[%emt 0:00:07]} Rd8 {[%emt 0:00:16]} 18. Rfd1 {[%emt 0:00:04]} Bg5 {[%emt 0:00:07]} 19. f4 {[%emt 0:00:14]} Bf6 {[%emt 0:00:04]} 20. Rac1 {[%emt 0:00:11]} h6 {[%emt 0:00:11]} 21. a4 {[%emt 0:00:06]} Qf5 {[%emt 0:00:09]} 22. Qb4 {[%emt 0:00:08]} a5 {[%emt 0:00:31]} 23. Qb3 {[%emt 0:00:27]} Be7 {[%emt 0:00:03]} 24. h3 {[%emt 0:00:15]} Bb4 {[%emt 0:00:08]} 25. Kh2 {[%emt 0:00:04]} Qf6 {[%emt 0:00:01]} 26. Qc4 {[%emt 0:00:09]} Qe7 {[%emt 0:00:02]} 27. b3 {[%emt 0:00:03]} Qd6 {[%emt 0:00:01]} 28. Be4 {[%emt 0:00:04]} Bd7 {[%emt 0:00:06]} 29. Bc2 {[%emt 0:00:04]} Qd5 {[%emt 0:00:12]} 30. Qd3 {[%emt 0:00:02]} g6 {[%emt 0:00:01]} 31. Qf1 {[%emt 0:00:06]} b5 {[%emt 0:00:06]} 32. f5 {[%emt 0:00:07]} exf5 {[%emt 0:00:15]} 33. Bxh6 {[%emt 0:00:02]} bxa4 {[%emt 0:00:02]} 34. bxa4 {[%emt 0:00:02]} 0-1

[Event "Austria Championship Blitz 2024"]
[Site "Innsbruck"]
[Date "2024.06.01"]
[Round "4.1"]
[White "Platzgummer, Fabian"]
[Black "Blohberger, Felix"]
[Result "1/2-1/2"]
[ECO "A07"]
[WhiteElo "2311"]
[BlackElo "2506"]
[Annotator "TA"]
[PlyCount "135"]
[EventDate "2024.06.01"]
[EventType "swiss"]
[EventCountry "AUT"]
[SourceTitle "playchess.com"]
[Source "ChessBase"]
[SourceQuality "1"]
[TimeControl "180+2"]

{[%evp 53,135,-198,-197,-291,-150,-195,-198,-276,-277,-384,-382,-370,-287,-454,-272,-268,-272,-281,-206,-267,-192,-274,-268,-246,-192,-192,-118,-118,-118,-118,-118,-118,-118,-118,-118,-118,-118,-40,-118,-118,-118,-152,-152,-152,-152,-152,-152,-152,-152,-152,-98,-98,-8,-8,-8,-8,-8,-8,-8,-8,-8,-20,-20,-1146,-1146,-1106,-8,-8,0,-1020,0,-8,-8,-8,0,-8,-8,-8,-8,-1084,0,-8,0,-404]} 1. Nf3 {[%emt 0:00:02]} d5 {[%emt 0:00:03]} 2. g3 {[%emt 0:00:02]} g6 {[%emt 0:00:00]} 3. Bg2 {[%emt 0:00:02]} Bg7 {[%emt 0:00:01]} 4. O-O {[%emt 0:00:03]} e5 {[%emt 0:00:01]} 5. d3 {[%emt 0:00:03]} Nc6 {[%emt 0:00:03]} 6. c4 {[%emt 0:00:07]} dxc4 {[%emt 0:00:09]} 7. dxc4 {[%emt 0:00:01]} Qxd1 {[%emt 0:00:04]} 8. Rxd1 {[%emt 0:00:02]} e4 {[%emt 0:00:06]} 9. Ne1 {[%emt 0:00:17]} f5 {[%emt 0:00:06]} 10. Nc2 {[%emt 0:00:05]} Be6 {[%emt 0:00:04]} 11. Nba3 {[%emt 0:00:10]} Rd8 {[%emt 0:00:08]} 12. Rxd8+ {[%emt 0:00:07]} Kxd8 {[%emt 0:00:01]} 13. Bg5+ {[%emt 0:00:11]} Kc8 {[%emt 0:00:03]} 14. Rb1 {[%emt 0:00:07]} h6 {[%emt 0:00:12]} 15. Be3 {[%emt 0:00:06]} Nge7 {[%emt 0:00:10]} 16. f3 {[%emt 0:00:38]} exf3 {[%emt 0:00:10]} 17. exf3 {[%emt 0:00:04]} Ne5 {[%emt 0:00:26]} 18. Bd4 {[%emt 0:00:19]} N7c6 {[%emt 0:00:10]} 19. Bc3 {[%emt 0:00:01]} Rg8 {[%emt 0:00:09]} 20. Re1 {[%emt 0:00:05]} Bf7 {[%emt 0:00:05]} 21. Ne3 {[%emt 0:00:21]} Nd3 {[%emt 0:00:04]} 22. Rd1 {[%emt 0:00:07]} Nxb2 {[%emt 0:00:04]} 23. Bxb2 {[%emt 0:00:03]} Bxb2 {[%emt 0:00:01]} 24. Nac2 {[%emt 0:00:03]} Rd8 {[%emt 0:00:04]} 25. Rb1 {[%emt 0:00:46]} Bd4 {[%emt 0:00:33]} 26. Nxd4 {[%emt 0:00:00]} Nxd4 {[%emt 0:00:05]} 27. f4 {[%emt 0:00:00]} c6 {[%emt 0:00:01]} 28. Kf2 {[%emt 0:00:00]} (28. Kf1 $142) 28... h5 {[%emt 0:00:04]} (28... Nc2 $19 29. Nxc2 Rd2+ (29... Bxc4 30. Ne1 $14) 30. Ke3 Rxc2 (30... Rxg2 $2 31. Ne1 $19)) 29. Rb2 {[%emt 0:00:00]} Kc7 {[%emt 0:00:02]} 30. h3 {[%emt 0:00:00]} (30. Rd2 {keeps fighting.}) 30... Ne6 $19 {[%emt 0:00:03]} 31. h4 {[%emt 0:00:00]} Nc5 {[%emt 0:00:02]} 32. Re2 {[%emt 0:00:00]} Re8 {[%emt 0:00:03]} 33. Bf3 {[%emt 0:00:03]} (33. Rd2 $142) 33... Ne4+ {[%emt 0:00:04]} (33... Nd3+ $142 34. Kg2 Re6) 34. Bxe4 $19 {[%emt 0:00:08]} Rxe4 {[%emt 0:00:49]} 35. Rc2 c5 {[%emt 0:00:00]} 36. Ke2 {[%emt 0:00:03]} Kc6 {[%emt 0:00:00]} 37. Kd3 {[%emt 0:00:00]} (37. Kd2 $142) 37... a6 $19 {[%emt 0:00:00]} 38. a4 {[%emt 0:00:01]} b6 {[%emt 0:00:00]} 39. Rd2 {[%emt 0:00:03]} Rd4+ {[%emt 0:00:00]} ({Black should play} 39... Kb7 $19 {White must now prevent ...Rd4+.} 40. Rb2 Rd4+ 41. Kc3 Be8) 40. Kc3 $17 Rxd2 41. Kxd2 {[%emt 0:00:01]} Kd6 {[%emt 0:00:00]} 42. Kc3 {[%emt 0:00:02]} Be8 {[%emt 0:00:00]} 43. Kb3 {[%emt 0:00:05]} Bc6 {[%emt 0:00:00]} 44. Nd1 {[%emt 0:00:05]} Bf3 {[%emt 0:00:04]} 45. Nc3 {[%emt 0:00:01]} Kc6 {[%emt 0:00:01]} (45... a5 $15) 46. Ka3 {[%emt 0:00:03]} Be4 {[%emt 0:00:05]} 47. Kb3 {[%emt 0:00:05]} Bd3 {[%emt 0:00:02]} 48. Nd1 {[%emt 0:00:02]} b5 {[%emt 0:00:06]} 49. axb5+ {[%emt 0:00:01]} axb5 {[%emt 0:00:01]} 50. cxb5+ {[%emt 0:00:01]} Kxb5 {[%emt 0:00:03]} 51. Kc3 {[%emt 0:00:02]} Be4 {[%emt 0:00:03]} (51... c4 $142 $1) 52. Ne3 $17 {[%emt 0:00:01] [#]} Bf3 {[%emt 0:00:03]} (52... Kc6 $1 $17) 53. Nc4 $11 {[%emt 0:00:01]} Bc6 {[%emt 0:00:03]} 54. Ne5 {[%emt 0:00:02]} Be8 {[%emt 0:00:01]} 55. Kb3 {[%emt 0:00:00]} c4+ {[%emt 0:00:10]} 56. Kc3 $1 (56. Nxc4 $2 {perishes.} Bf7 57. Kc3 Bxc4 $19) 56... Kc5 {[%emt 0:00:00]} 57. Nf3 {[%emt 0:00:05]} Kd5 {[%emt 0:00:00]} 58. Nd2 $2 {[%emt 0:00:01][%mdl 8192]} (58. Ng5 $11) 58... Bb5 $19 {[%emt 0:00:01]} 59. Kb4 {[%emt 0:00:01]} Ba6 $2 {[%emt 0:00:02]} (59... c3 $19 60. Kxc3 Be2) 60. Kc3 $11 {[%emt 0:00:02]} Bb5 $2 {[%emt 0:00:03][%mdl 8192]} (60... Kc5 $11 61. Nf3 Kd5) 61. Kb4 $1 $19 {[%emt 0:00:00]} Ba6 $2 {[%emt 0:00:06]} (61... c3 $19 62. Kxc3 Be2) 62. Kc3 $11 {[%emt 0:00:01]} Bc8 {[%emt 0:00:00]} 63. Nxc4 {[%emt 0:00:03]} Bd7 {[%emt 0:00:01]} 64. Nd2 {[%emt 0:00:02]} Bb5 {[%emt 0:00:01]} 65. Kb4 {[%emt 0:00:01]} Ba6 {[%emt 0:00:02]} 66. Kc3 $2 {[%emt 0:00:00][%mdl 8192] [#]} (66. Nf3 $11) 66... Bb5 $2 {[%emt 0:00:01]} ({Black should try} 66... Be2 $1 $19 67. Nb3 Ke4) 67. Kb4 $11 {[%emt 0:00:01]} Ba6 $2 {[%emt 0:00:00][%mdl 8192]} (67... Be2 $11 68. Kc3 Bb5) 68. Kc3 {[%emt 0:00:19]} 1/2-1/2

[Event "Austria Championship Blitz 2024"]
[Site "Innsbruck"]
[Date "2024.06.01"]
[Round "4.2"]
[White "Shengelia, David"]
[Black "Kilgus, Georg"]
[Result "1-0"]
[ECO "E11"]
[WhiteElo "2465"]
[BlackElo "2362"]
[Annotator "TA"]
[PlyCount "35"]
[EventDate "2024.06.01"]
[EventType "swiss"]
[EventCountry "AUT"]
[SourceTitle "playchess.com"]
[Source "ChessBase"]
[SourceQuality "1"]
[TimeControl "180+2"]

{[%evp 10,35,32,10,25,13,17,5,15,-5,0,0,0,0,0,0,0,-45,0,-109,-75,-125,-121,-127,-163,-136,-3,-9]} 1. d4 {[%emt 0:00:02]} Nf6 {[%emt 0:00:00]} 2. Nf3 {[%emt 0:00:01]} e6 {[%emt 0:00:01][%cal Be7e6,Be6e5][%mdl 32]} 3. c4 {[%emt 0:00:02]} Bb4+ {[%emt 0:00:01]} 4. Nbd2 {[%emt 0:00:02]} O-O {[%emt 0:00:10]} 5. e3 {[%emt 0:00:01]} d6 {[%emt 0:00:32]} 6. Bd3 {[%emt 0:00:11]} Qe7 {[%emt 0:00:01]} 7. e4 {[%emt 0:00:36]} e5 {[%emt 0:00:20]} 8. d5 $1 {[%emt 0:00:04]} a5 {[%emt 0:00:10]} 9. h3 {[%emt 0:00:21]} Na6 {[%emt 0:00:05]} 10. a3 {[%emt 0:00:24]} Bxd2+ {[%emt 0:00:24]} 11. Nxd2 {[%emt 0:00:02]} Nc5 {[%emt 0:00:06]} 12. Bc2 {[%emt 0:00:01]} a4 {[%emt 0:00:01][%cal Ob7b5]} 13. Qe2 {[%emt 0:00:17]} c6 {[%emt 0:00:10]} 14. g4 {[%emt 0:00:05]} (14. O-O $11) 14... cxd5 {[%emt 0:00:20]} 15. exd5 {[%emt 0:00:14] [#]} (15. cxd5 $142 Nfd7 16. O-O) 15... b5 $1 $17 {[%emt 0:00:24][%mdl 512] Strongly threatening ...bxc4.} 16. g5 {[%emt 0:00:02]} Nfd7 {[%emt 0:00:00] Excellent horsemanship.} 17. cxb5 {[%emt 0:00:05]} Nb6 {[%emt 0:00:00]} ({Don't do} 17... Qxg5 18. Nf3 Qd8 19. Rg1 $15) ({Black should play} 17... Bb7 $1 $17 18. Ne4 Bxd5) 18. Ne4 $1 {[%emt 0:00:04][%mdl 32768] Weighted Error Value: White=0.30/Black=0.25 (precise) .  Mistake:       	White=2     	Black=1      Inaccurate:     	White=1     	Black=2      OK:         	White=4     	Black=6      Strong:       	White=2     	---       . Loss on time!?} 1-0

[Event "Austria Championship Blitz 2024"]
[Site "Innsbruck"]
[Date "2024.06.01"]
[Round "4.3"]
[White "Schwabeneder, Florian"]
[Black "Balint, Peter"]
[Result "1/2-1/2"]
[ECO "C84"]
[WhiteElo "2405"]
[BlackElo "2343"]
[Annotator "RC"]
[PlyCount "168"]
[EventDate "2024.06.01"]
[EventType "swiss"]
[EventCountry "AUT"]
[SourceTitle "playchess.com"]
[Source "ChessBase"]
[SourceQuality "1"]
[TimeControl "180+2"]

1. e4 {[%emt 0:00:02]} e5 {[%emt 0:00:01]} 2. Nf3 {[%emt 0:00:02]} Nc6 {[%emt 0:00:00]} 3. Bb5 {[%emt 0:00:01]} a6 {[%emt 0:00:01]} 4. Ba4 {[%emt 0:00:02]} Nf6 {[%emt 0:00:01]} 5. O-O {[%emt 0:00:04]} Be7 {[%emt 0:00:03]} 6. d3 {[%emt 0:00:04]} b5 {[%emt 0:00:03]} 7. Bb3 {[%emt 0:00:01]} d6 {[%emt 0:00:01]} 8. Bd2 {[%emt 0:00:05]} O-O {[%emt 0:00:04]} 9. Re1 {[%emt 0:00:06]} h6 {[%emt 0:00:16]} 10. h3 {[%emt 0:00:03]} Re8 {[%emt 0:00:03]} 11. a3 {[%emt 0:00:08]} Bf8 {[%emt 0:00:09]} 12. Nc3 {[%emt 0:00:03]} Ne7 {[%emt 0:00:09]} 13. a4 {[%emt 0:00:16]} Bd7 {[%emt 0:00:06]} 14. Ne2 {[%emt 0:00:11]} Ng6 {[%emt 0:00:01]} 15. Ng3 {[%emt 0:00:06]} c5 {[%emt 0:00:04]} 16. c3 {[%emt 0:00:17]} Qc8 {[%emt 0:00:11]} 17. Kh2 {[%emt 0:00:27]} c4 {[%emt 0:00:11]} 18. dxc4 {[%emt 0:00:11]} bxc4 {[%emt 0:00:01]} 19. Bc2 {[%emt 0:00:01]} Rb8 {[%emt 0:00:05]} 20. Bc1 {[%emt 0:00:09]} Nf4 {[%emt 0:00:12]} 21. Ng1 {[%emt 0:00:15]} Qc5 {[%emt 0:00:26]} 22. Be3 {[%emt 0:00:06]} Qc6 {[%emt 0:00:01]} 23. Rb1 {[%emt 0:00:02]} g6 {[%emt 0:00:07]} 24. Qf3 {[%emt 0:00:11]} Bg7 {[%emt 0:00:30]} 25. Red1 {[%emt 0:00:04]} Rbd8 {[%emt 0:00:11]} 26. Bxf4 {[%emt 0:00:27]} exf4 {[%emt 0:00:00]} 27. Qxf4 {[%emt 0:00:02]} d5 {[%emt 0:00:04]} 28. exd5 {[%emt 0:00:04]} Nxd5 {[%emt 0:00:02]} 29. Qf3 {[%emt 0:00:02]} Be6 {[%emt 0:00:08]} 30. N1e2 {[%emt 0:00:01]} Qc5 {[%emt 0:00:12]} 31. Nd4 {[%emt 0:00:02]} Bc8 {[%emt 0:00:02]} 32. Be4 {[%emt 0:00:17]} Nf6 {[%emt 0:00:05]} 33. Bc2 {[%emt 0:00:08]} Qc7 {[%emt 0:00:07]} 34. Re1 {[%emt 0:00:02]} Bb7 {[%emt 0:00:02]} 35. Qd1 {[%emt 0:00:05]} Nd5 {[%emt 0:00:02]} 36. Rxe8+ {[%emt 0:00:03]} Rxe8 {[%emt 0:00:00]} 37. Qd2 {[%emt 0:00:01]} Nf4 {[%emt 0:00:03]} 38. Rg1 {[%emt 0:00:03]} Be5 {[%emt 0:00:02]} 39. Bd1 {[%emt 0:00:03]} Kg7 {[%emt 0:00:01]} 40. Bf3 {[%emt 0:00:01]} Nd3 {[%emt 0:00:06]} 41. Bxb7 {[%emt 0:00:01]} Qxb7 {[%emt 0:00:00]} 42. b3 {[%emt 0:00:03]} Qc7 {[%emt 0:00:04]} 43. bxc4 {[%emt 0:00:01]} Qxc4 {[%emt 0:00:02]} 44. Nf3 {[%emt 0:00:01]} Bf4 {[%emt 0:00:02]} 45. Qc2 {[%emt 0:00:04]} Ne5 {[%emt 0:00:11]} 46. Nxe5 Rxe5 {[%emt 0:00:00]} 47. Rd1 {[%emt 0:00:04]} Re2 {[%emt 0:00:05]} 48. Qd3 {[%emt 0:00:00]} Qxd3 {[%emt 0:00:02]} 49. Rxd3 {[%emt 0:00:01]} Rxf2 {[%emt 0:00:01]} 50. Kg1 {[%emt 0:00:02]} Ra2 {[%emt 0:00:02]} 51. Ne4 {[%emt 0:00:06]} Rxa4 {[%emt 0:00:01]} 52. Nc5 {[%emt 0:00:01]} Rc4 {[%emt 0:00:01]} 53. Nxa6 {[%emt 0:00:03]} Be5 {[%emt 0:00:05]} 54. Nb4 {[%emt 0:00:02]} Bxc3 {[%emt 0:00:03]} 55. Nd5 {[%emt 0:00:00]} Bd4+ {[%emt 0:00:03]} 56. Kf1 {[%emt 0:00:01]} Rc1+ {[%emt 0:00:02]} 57. Ke2 {[%emt 0:00:01]} Be5 {[%emt 0:00:02]} 58. Ne3 {[%emt 0:00:02]} Bf4 {[%emt 0:00:01]} 59. Nd5 {[%emt 0:00:02]} Rc2+ {[%emt 0:00:05]} 60. Kf3 {[%emt 0:00:01]} Be5 {[%emt 0:00:02]} 61. Ne3 {[%emt 0:00:01]} Ra2 {[%emt 0:00:03]} 62. Rb3 {[%emt 0:00:02]} h5 {[%emt 0:00:02]} 63. Rb5 {[%emt 0:00:01]} Bd4 {[%emt 0:00:02]} 64. Rb3 {[%emt 0:00:03]} Kh6 {[%emt 0:00:02]} 65. Rd3 {[%emt 0:00:04]} Ba7 {[%emt 0:00:03]} 66. Rb3 {[%emt 0:00:02]} f5 {[%emt 0:00:02]} 67. Rd3 {[%emt 0:00:04]} Kg5 {[%emt 0:00:02]} 68. Rb3 {[%emt 0:00:03]} Ra4 {[%emt 0:00:05]} 69. Rd3 {[%emt 0:00:01]} Re4 {[%emt 0:00:02]} 70. Nd5 {[%emt 0:00:03]} Rd4 {[%emt 0:00:04]} 71. Rxd4 {[%emt 0:00:01]} Bxd4 {[%emt 0:00:00]} 72. Nb4 {[%emt 0:00:01]} Kf6 {[%emt 0:00:03]} 73. Nd5+ {[%emt 0:00:01]} Ke5 {[%emt 0:00:01]} 74. Nf4 {[%emt 0:00:01]} Kf6 {[%emt 0:00:02]} 75. Nd5+ {[%emt 0:00:01]} Kg5 {[%emt 0:00:02]} 76. Nf4 {[%emt 0:00:01]} Be5 {[%emt 0:00:02]} 77. Nd5 {[%emt 0:00:02]} Bd6 {[%emt 0:00:02]} 78. Ne3 {[%emt 0:00:02]} Kf6 {[%emt 0:00:02]} 79. Nd5+ {[%emt 0:00:02]} Kf7 {[%emt 0:00:01]} 80. Ne3 {[%emt 0:00:01]} Bc5 {[%emt 0:00:04]} 81. Nd5 {[%emt 0:00:02]} g5 {[%emt 0:00:03]} 82. g4 {[%emt 0:00:09]} hxg4+ {[%emt 0:00:06]} 83. hxg4 {[%emt 0:00:01]} Kg6 {[%emt 0:00:02]} 84. gxf5+ Kxf5 {[%emt 0:00:06]} 1/2-1/2

[Event "Austria Championship Blitz 2024"]
[Site "Innsbruck"]
[Date "2024.06.01"]
[Round "4.4"]
[White "Neuschmied, Siegfried"]
[Black "Lerch, Johannes"]
[Result "0-1"]
[ECO "B07"]
[WhiteElo "2234"]
[BlackElo "2208"]
[Annotator "RC"]
[PlyCount "134"]
[EventDate "2024.06.01"]
[EventType "swiss"]
[EventCountry "AUT"]
[SourceTitle "playchess.com"]
[Source "ChessBase"]
[SourceQuality "1"]
[TimeControl "180+2"]

1. e4 {[%emt 0:00:01]} d6 {[%emt 0:00:00]} 2. d4 {[%emt 0:00:02]} Nf6 {[%emt 0:00:01]} 3. Nc3 {[%emt 0:00:01]} e5 {[%emt 0:00:00]} 4. Nge2 {[%emt 0:00:05]} h5 {[%emt 0:00:05]} 5. h3 {[%emt 0:00:06]} Be7 {[%emt 0:00:04]} 6. Be3 {[%emt 0:00:04]} Nbd7 {[%emt 0:00:04]} 7. Qd2 {[%emt 0:00:03]} c6 {[%emt 0:00:01]} 8. f4 {[%emt 0:00:18]} Qc7 {[%emt 0:00:04]} 9. O-O-O {[%emt 0:00:05]} a5 {[%emt 0:00:06]} 10. Kb1 {[%emt 0:00:25]} h4 {[%emt 0:00:01]} 11. Nc1 {[%emt 0:00:04]} a4 {[%emt 0:00:13]} 12. Be2 {[%emt 0:00:03]} a3 {[%emt 0:00:29]} 13. b3 {[%emt 0:00:04]} b6 {[%emt 0:00:07]} 14. Bf3 {[%emt 0:00:02]} Bb7 {[%emt 0:00:02]} 15. N3e2 {[%emt 0:00:02]} O-O-O {[%emt 0:00:09]} 16. c4 {[%emt 0:00:10]} Kb8 {[%emt 0:00:07]} 17. Nc3 {[%emt 0:00:06]} Nf8 {[%emt 0:00:04]} 18. fxe5 {[%emt 0:00:09]} dxe5 {[%emt 0:00:01]} 19. d5 {[%emt 0:00:01]} Bb4 {[%emt 0:00:08]} 20. Qc2 {[%emt 0:00:08]} Ng6 {[%emt 0:00:04]} 21. Nd3 {[%emt 0:00:02]} Be7 {[%emt 0:00:08]} 22. Na4 {[%emt 0:00:08]} c5 {[%emt 0:00:05]} 23. Nc3 {[%emt 0:00:02]} Ba6 {[%emt 0:00:03]} 24. Bc1 {[%emt 0:00:01]} Ne8 {[%emt 0:00:07]} 25. Bxa3 {[%emt 0:01:40]} Nd6 {[%emt 0:00:02]} 26. Bc1 {[%emt 0:00:00]} Kb7 {[%emt 0:00:04]} 27. Be3 {[%emt 0:00:00]} f6 {[%emt 0:00:07]} 28. Rhf1 {[%emt 0:00:00]} Nf8 {[%emt 0:00:01]} 29. Bg4 {[%emt 0:00:00]} Ka8 {[%emt 0:00:03]} 30. a4 {[%emt 0:00:00]} Bc8 {[%emt 0:00:01]} 31. Bxc8 {[%emt 0:00:00]} Rxc8 {[%emt 0:00:01]} 32. Kb2 {[%emt 0:00:00]} Nd7 {[%emt 0:00:01]} 33. Ra1 {[%emt 0:00:00]} Kb7 {[%emt 0:00:01]} 34. Qe2 {[%emt 0:00:00]} g6 {[%emt 0:00:21]} 35. Qg4 {[%emt 0:00:00]} Rcg8 {[%emt 0:00:02]} 36. Rf2 {[%emt 0:00:00]} Qc8 {[%emt 0:00:04]} 37. Qe6 {[%emt 0:00:00]} Qe8 {[%emt 0:00:05]} 38. Raf1 {[%emt 0:00:00]} Nf8 {[%emt 0:00:10]} 39. Qg4 {[%emt 0:00:00]} f5 {[%emt 0:00:07]} 40. exf5 {[%emt 0:00:00]} gxf5 {[%emt 0:00:01]} 41. Qe2 {[%emt 0:00:00]} e4 {[%emt 0:00:04]} 42. Nf4 {[%emt 0:00:00]} Bf6 {[%emt 0:00:03]} 43. Kc2 {[%emt 0:00:00]} Qe5 {[%emt 0:00:05]} 44. Bd2 {[%emt 0:00:00]} Ng6 {[%emt 0:00:06]} 45. Ne6 {[%emt 0:00:00]} Nf8 {[%emt 0:00:12]} 46. Qe3 {[%emt 0:00:00]} Nxe6 {[%emt 0:00:10]} 47. dxe6 {[%emt 0:00:00]} Rg3 {[%emt 0:00:01]} 48. Qe1 {[%emt 0:00:00]} e3 {[%emt 0:00:10]} 49. Re2 {[%emt 0:00:15]} exd2 {[%emt 0:00:02]} 50. Rxe5 {[%emt 0:00:06]} dxe1=Q {[%emt 0:00:02]} 51. Rfxe1 {[%emt 0:00:01]} Bxe5 {[%emt 0:00:25]} 52. Rxe5 {[%emt 0:00:00]} Rxg2+ {[%emt 0:00:02]} 53. Kd3 {[%emt 0:00:02]} Rg3+ {[%emt 0:00:00]} 54. Kc2 {[%emt 0:00:00]} Rxc3+ {[%emt 0:00:00]} 55. Kxc3 {[%emt 0:00:02]} Kc8 {[%emt 0:00:00]} 56. a5 {[%emt 0:00:03]} Kc7 {[%emt 0:00:02]} 57. axb6+ {[%emt 0:00:04]} Kxb6 {[%emt 0:00:01]} 58. e7 {[%emt 0:00:02]} Re8 {[%emt 0:00:01]} 59. b4 {[%emt 0:00:05]} cxb4+ {[%emt 0:00:02]} 60. Kxb4 {[%emt 0:00:00]} Kc6 {[%emt 0:00:00]} 61. c5 {[%emt 0:00:32]} Nc8 {[%emt 0:00:07]} 62. Rxf5 {[%emt 0:00:00]} Nxe7 {[%emt 0:00:02]} 63. Rf6+ {[%emt 0:00:00]} Kc7 {[%emt 0:00:02]} 64. Re6 {[%emt 0:00:00]} Nd5+ {[%emt 0:00:02]} 65. Kc4 {[%emt 0:00:00]} Rxe6 66. Kxd5 {[%emt 0:00:10]} Re3 {[%emt 0:00:03]} 67. Kd4 {[%emt 0:00:00]} Rxh3 {[%emt 0:00:01]} 0-1